bitfinex-derivatives/quotes_SOLF0:USTF0_20260217
["timestamp","ask_amount","ask_price","bid_price","bid_amount"]
[1771337370876,10.5755,85.149,85.11,10.5802]
[1771337372783,10.5762,85.144,85.103,23.226071]
[1771337372982,10.5762,85.144,85.103,12.644971]
[1771337373375,14.6463245,85.15,85.109,10.5804]
[1771337374176,10.5756,85.148,85.109,10.5804]
[1771337374578,14.6463245,85.15,85.115,10.5796]
[1771337375672,10.5756,85.148,85.108,10.5805]
[1771337377480,14.6463245,85.15,85.114,10.5798]
[1771337380181,12.65933836,85.15,85.114,10.5798]
[1771337380382,14.6463245,85.15,85.114,10.5798]
[1771337384283,95.1233,85.181,85.108,12.644971]
[1771337384284,1.98698614,85.14,85.108,12.644971]
[1771337384489,13.56918798,85.14,85.096,11.76778141]
[1771337385284,13.56918798,85.14,85.108,10.5805]
[1771337385492,1.98698614,85.14,85.108,11.76778141]
[1771337385893,1.98698614,85.15,85.116,11.76778141]
[1771337386899,1.98698614,85.15,85.121,10.5789]
[1771337387091,1.98698614,85.15,85.116,11.76778141]
[1771337388098,11.58220184,85.148,85.115,10.5797]
[1771337388296,11.58220184,85.148,85.104,11.76778141]
[1771337389407,22.15800184,85.147,85.114,10.5797]
[1771337389611,11.58220184,85.147,85.104,11.76778141]
[1771337390412,1.98698614,85.16,85.126,10.5782]
[1771337390607,11.58220184,85.162,85.126,10.5782]
[1771337391410,1.98698614,85.16,85.126,10.5782]
[1771337393913,1.98698614,85.17,85.133,12.22970071]
[1771337394210,1.98698614,85.18,85.133,12.22970071]
[1771337394408,1.98698614,85.18,85.151,10.5752]
[1771337394910,1.98698614,85.19,85.151,22.80490071]
[1771337395213,8.56337999,85.189,85.158,10.5743]
[1771337395410,12.4655482,85.198,85.158,10.5743]
[1771337396510,12.4655482,85.198,85.158,22.80400071]
[1771337397109,12.4655482,85.198,85.166,10.5733]
[1771337398907,12.4655482,85.198,85.158,22.80390071]
[1771337399107,12.4655482,85.198,85.158,12.22970071]
[1771337400216,1.98698614,85.21,85.165,12.22970071]
[1771337400713,1.98698614,85.21,85.14,21.1531]
[1771337400714,1.98698614,85.22,85.171,12.22970071]
[1771337400910,1.98698614,85.21,85.171,12.22970071]
[1771337401504,1.98698614,85.19,85.144,12.22970071]
[1771337402209,12.4655482,85.169,85.12,1.98698614]
[1771337402415,1.98698614,85.16,85.114,12.22970071]
[1771337402713,8.52880035,85.219,85.063,28.7250793]
[1771337402714,1.98698614,85.17,85.131,12.22970071]
[1771337403308,1.98698614,85.18,85.131,12.22970071]
[1771337403508,10.5718,85.179,85.134,10.5772]
[1771337404713,73.98,85.198,85.131,12.22970071]
[1771337404714,1.98698614,85.17,85.131,12.22970071]
[1771337405117,1.98698614,85.17,85.127,10.5782]
[1771337405118,1.98698614,85.16,85.127,10.5782]
[1771337405315,1.98698614,85.16,85.124,12.22970071]
[1771337405513,1.98698614,85.15,85.124,12.22970071]
[1771337405713,1.98698614,85.15,85.114,10.5798]
[1771337406111,10.5755,85.149,85.11,12.22970071]
[1771337406412,23.0410482,85.149,85.104,10.581]
[1771337406818,1.98698614,85.14,85.104,10.581]
[1771337407907,1.98752812,85.14,85.104,10.581]
[1771337410418,1.98752812,85.13,85.08,14.21722883]
[1771337410718,1.98752812,85.12,85.08,12.22970071]
[1771337411315,1.98752812,85.13,85.08,14.21722883]
[1771337411718,12.56542812,85.13,85.088,10.5829]
[1771337413320,25.03097632,85.13,85.088,10.5829]
[1771337415021,14.45307632,85.13,85.088,10.5829]
[1771337415317,14.45307632,85.13,85.095,10.5821]
[1771337415524,14.45307632,85.13,85.09,1.98752812]
[1771337415732,14.45307632,85.13,85.08,14.21722883]
[1771337415927,14.45307632,85.13,85.093,10.5823]
[1771337416114,14.1796842,85.14,85.094,11.72478438]
[1771337416315,1.98752812,85.13,85.094,11.72478438]
[1771337418028,1.98752812,85.1,85.052,11.72478438]
[1771337418222,12.19215608,85.109,85.061,11.72478438]
[1771337418423,12.19215608,85.109,85.06,1.98752812]
[1771337418424,12.56662812,85.12,85.071,11.72478438]
[1771337418620,74.0,85.135,85.081,11.72478438]
[1771337418923,1.98752812,85.13,85.092,10.5825]
[1771337419118,1.98752812,85.13,85.09,1.98752812]
[1771337419321,1.98752812,85.13,85.081,11.72478438]
[1771337419723,1.98752812,85.13,85.083,10.5836]
[1771337420030,1.98752812,85.13,85.084,11.72478438]
[1771337420427,10.578,85.129,85.084,11.72478438]
[1771337421019,1.98752812,85.11,85.071,11.72478438]
[1771337421527,1.98752812,85.11,84.997,28.7250793]
[1771337421528,1.98752812,85.1,85.057,11.72478438]
[1771337421831,1.98752812,85.1,85.058,10.5868]
[1771337422032,1.98752812,85.1,85.059,11.72478438]
[1771337422332,1.98752812,85.11,85.061,11.72478438]
[1771337423726,1.98752812,85.11,85.069,10.5854]
[1771337423925,1.98752812,85.11,85.047,96.72]
[1771337423926,10.5797,85.116,85.07,13.7123125]
[1771337425718,10.5797,85.116,85.071,10.5852]
[1771337425919,14.1796842,85.11,85.06,13.7123125]
[1771337426427,14.1796842,85.11,85.07,1.98752812]
[1771337427432,10.5804,85.109,85.07,1.98752812]
[1771337427634,10.5804,85.109,85.063,10.5862]
[1771337428025,14.1796842,85.11,85.063,10.5862]
[1771337428333,14.1796842,85.11,85.07,12.57282812]
[1771337428334,12.19215608,85.11,85.07,12.57282812]
[1771337429535,14.1796842,85.11,85.07,12.57282812]
[1771337430632,10.5795,85.117,85.07,12.57282812]
[1771337430633,1.98752812,85.12,85.077,11.72478438]
[1771337430824,14.1796842,85.12,85.077,11.72478438]
[1771337432736,10.5792,85.119,85.077,11.72478438]
[1771337433928,10.5782,85.127,85.082,11.72478438]
[1771337434124,1.98752812,85.13,85.082,11.72478438]
[1771337434324,12.19215608,85.133,85.091,11.72478438]
[1771337435839,12.19215608,85.133,85.093,10.5823]
[1771337437139,10.5782,85.128,85.091,11.72478438]
[1771337437335,12.19215608,85.119,85.078,11.72478438]
[1771337437543,12.19215608,85.119,85.08,1.98752812]
[1771337437739,12.19215608,85.119,85.08,13.7123125]
[1771337438632,12.19215608,85.117,85.07,1.98752812]
[1771337439236,12.19215608,85.117,85.07,13.7123125]
[1771337439731,1.98752812,85.13,85.081,11.72478438]
[1771337439934,14.1796842,85.13,85.081,11.72478438]
[1771337440728,12.19215608,85.119,85.07,1.98752812]
[1771337440934,12.19215608,85.119,85.07,11.72478438]
[1771337441134,1.98752812,85.1,85.055,11.72478438]
[1771337441837,12.19215608,85.099,85.055,11.72478438]
[1771337442338,12.19215608,85.099,85.06,1.98752812]
[1771337442727,12.19215608,85.099,85.062,10.5863]
[1771337443434,12.19215608,85.098,85.055,22.31178438]
[1771337443741,12.19215608,85.098,85.055,11.72478438]
[1771337444834,12.19215608,85.098,85.061,10.5864]
[1771337445935,12.19215608,85.098,85.051,10.60844876]
[1771337446129,12.19215608,85.098,85.06,1.98752812]
[1771337447340,10.5806,85.108,85.063,10.60844876]
[1771337448939,1.98752812,85.08,85.04,1.98752812]
[1771337449137,10.68814597,85.089,85.03,12.59597688]
[1771337449332,10.68814597,85.089,85.04,1.98752812]
[1771337450636,10.68814597,85.087,85.041,10.5889]
[1771337451037,10.68814597,85.087,85.047,10.5881]
[1771337451240,10.68814597,85.087,85.04,1.98752812]
[1771337451441,10.68814597,85.087,85.03,12.59597688]
[1771337451641,12.49113579,85.08,85.03,12.59597688]
[1771337452439,10.50360767,85.079,85.04,10.589]
[1771337453152,10.50360767,85.079,85.052,10.5875]
[1771337453447,10.50360767,85.079,85.03,12.59597688]
[1771337454640,10.50360767,85.079,85.045,10.5883]
[1771337455347,10.583,85.089,85.045,10.5883]
[1771337455937,10.5832,85.087,85.045,10.5883]
[1771337456140,10.50360767,85.086,85.045,10.5883]
[1771337456847,10.50360767,85.086,85.019,110.9]
[1771337456848,10.50360767,85.079,85.038,10.5892]
[1771337457051,1.98752812,85.09,85.041,10.84490207]
[1771337457248,1.98752812,85.1,85.051,10.84490207]
[1771337457646,1.98752812,85.1,85.057,21.43180207]
[1771337457847,10.50360767,85.102,85.06,12.83243019]
[1771337458653,10.50360767,85.102,85.061,10.5863]
[1771337460851,12.49113579,85.1,85.061,10.5863]
[1771337461148,10.50360767,85.099,85.061,10.5863]
[1771337461354,10.50360767,85.099,85.025,33.23262016]
[1771337461355,10.50360767,85.079,85.03,1.98752812]
[1771337461540,10.50360767,85.079,85.031,10.84490207]
[1771337461741,74.02,85.114,85.033,10.5899]
[1771337461742,10.50360767,85.074,85.033,10.5899]
[1771337462346,1.98752812,85.08,85.031,10.84490207]
[1771337462742,12.49113579,85.09,85.041,10.84490207]
[1771337463652,12.49113579,85.09,85.054,10.5872]
[1771337464251,12.49113579,85.09,85.017,21.51262016]
[1771337464252,1.98752812,85.1,85.062,10.5862]
[1771337464950,10.50360767,85.103,85.063,10.84490207]
[1771337465252,10.50360767,85.103,85.064,10.586]
[1771337465454,10.50360767,85.103,85.063,10.84490207]
[1771337467053,1.98752812,85.1,85.063,10.84490207]
[1771337468057,1.98931605,85.1,85.063,10.84490207]
[1771337469550,1.98931605,85.1,85.064,10.84490207]
[1771337471154,10.50360767,85.119,85.07,1.98931605]
[1771337471349,10.50360767,85.109,85.067,10.84490207]
[1771337472253,12.49292372,85.1,85.053,10.84490207]
[1771337472655,12.49292372,85.1,85.056,10.587]
[1771337473257,12.49292372,85.1,85.063,10.5862]
[1771337473453,10.5805,85.109,85.064,10.84490207]
[1771337473656,10.50360767,85.108,85.064,10.84490207]
[1771337474052,10.50360767,85.108,85.032,21.51262016]
[1771337474053,12.49292372,85.1,85.056,10.587]
[1771337475358,12.49292372,85.1,85.052,10.84490207]
[1771337475359,10.78296754,85.089,85.047,10.5881]
[1771337476261,10.78296754,85.089,85.051,10.5876]
[1771337476754,10.5812,85.103,85.056,10.60385957]
[1771337476755,1.98931605,85.1,85.056,10.60385957]
[1771337476956,10.78296754,85.099,85.056,10.60385957]
[1771337478366,10.5818,85.098,85.056,10.60385957]
[1771337478669,10.78296754,85.089,85.043,10.5722465]
[1771337479048,1.98931605,85.08,85.043,10.5722465]
[1771337479248,10.78296754,85.079,85.043,10.5722465]
[1771337479448,10.78296754,85.079,85.03,12.50109532]
[1771337479653,10.78296754,85.079,85.037,10.5894]
[1771337480960,10.78296754,85.079,85.043,10.5886]
[1771337483563,1.98931605,85.1,85.051,10.11005363]
[1771337483966,10.78296754,85.105,85.063,10.09800197]
[1771337484556,10.78296754,85.118,85.071,10.0419258]
[1771337484867,1.98931605,85.13,85.081,10.04137916]
[1771337485064,8.59560573,85.129,85.081,10.04137916]
[1771337485368,1.98931605,85.13,85.081,10.04137916]
[1771337486457,10.578,85.129,85.084,10.04350478]
[1771337487554,1.98931605,85.13,85.084,10.04350478]
[1771337489566,12.77228359,85.14,85.091,9.799933]
[1771337490663,12.77228359,85.14,85.092,9.72395811]
[1771337492163,21.35976754,85.139,85.092,9.72395811]
[1771337492363,10.78296754,85.138,85.092,9.72395811]
[1771337492965,10.78296754,85.129,85.083,10.5836]
[1771337493466,10.78296754,85.119,85.079,9.66386571]
[1771337493861,10.78296754,85.119,85.07,1.98931605]
[1771337494665,10.78296754,85.119,85.075,10.5846]
[1771337495166,10.78296754,85.109,85.067,9.54828214]
[1771337495865,10.78296754,85.109,85.06,1.98931605]
[1771337496070,12.77228359,85.1,85.053,9.57842541]
[1771337496466,12.77228359,85.1,85.057,10.5869]
[1771337499374,12.77228359,85.09,85.049,10.5879]
[1771337500064,12.77228359,85.09,85.051,10.5876]
[1771337500261,12.77228359,85.09,85.05,9.44789556]
[1771337500262,12.77228359,85.09,85.04,1.98931605]
[1771337500769,12.77228359,85.09,85.04,11.39067131]
[1771337501673,12.77228359,85.09,85.05,10.5877]
[1771337503572,10.78296754,85.1,85.058,9.12656346]
[1771337503771,1.98931605,85.09,85.058,9.12656346]
[1771337504160,1.98931605,85.09,85.04,1.98931605]
[1771337504161,1.98931605,85.09,85.041,9.07697075]
[1771337504767,1.98931605,85.09,85.052,10.5875]
[1771337505373,1.98931605,85.09,85.041,9.07697075]
[1771337505374,12.15515477,85.09,85.045,10.5884]
[1771337506573,12.15515477,85.09,85.045,19.55446251]
[1771337507470,10.16583872,85.104,85.051,8.92302694]
[1771337507668,1.98931605,85.1,85.051,8.92302694]
[1771337508469,10.16583872,85.104,85.069,8.91851261]
[1771337508674,1.98931605,85.1,85.055,8.91851261]
[1771337509676,12.15515477,85.1,85.062,10.5862]
[1771337513677,10.16583872,85.1,85.063,8.30617549]
[1771337516276,12.15515477,85.1,85.063,8.30617549]
[1771337516677,10.16583872,85.1,85.063,8.30617549]
[1771337517475,10.16583872,85.1,85.064,10.586]
[1771337517675,10.16583872,85.1,85.064,18.8556906]
[1771337517875,10.16583872,85.1,85.064,8.2696906]
[1771337518074,10.5802,85.111,85.07,1.98931605]
[1771337518683,9.38916766,85.112,85.072,8.2385204]
[1771337519674,1.98931605,85.11,85.072,8.2385204]
[1771337520272,1.98931605,85.09,85.046,18.76818767]
[1771337520478,9.38916766,85.089,85.046,18.76818767]
[1771337522278,1.98931605,85.09,85.052,8.28545853]
[1771337522479,11.37848371,85.1,85.052,8.28545853]
[1771337522685,1.98931605,85.09,85.052,8.28545853]
[1771337523079,1.98931605,85.09,85.054,10.5873]
[1771337523280,1.98931605,85.09,85.055,8.25005468]
[1771337523584,11.37848371,85.1,85.055,8.25005468]
[1771337523881,9.38916766,85.094,85.055,8.25005468]
[1771337524079,1.98931605,85.09,85.055,8.25005468]
[1771337526586,1.98931605,85.1,85.055,8.25005468]
[1771337526781,1.98931605,85.11,85.061,8.07332303]
[1771337527680,1.98931605,85.11,85.071,10.585]
[1771337528279,9.38916766,85.109,85.064,8.00753267]
[1771337528478,1.98931605,85.1,85.064,8.00753267]
[1771337529084,11.37848371,85.1,85.064,8.00753267]
[1771337529583,1.98931605,85.09,85.057,10.5869]
[1771337529791,1.98931605,85.09,85.048,7.97458937]
[1771337529984,1.98979005,85.09,85.048,7.97458937]
[1771337530289,1.98979005,85.11,85.072,7.87811914]
[1771337530490,11.37895771,85.11,85.061,7.87811914]
[1771337530884,11.37895771,85.11,85.071,10.5851]
[1771337532277,11.37895771,85.11,85.064,10.5859]
[1771337532483,9.38916766,85.099,85.051,7.74720118]
[1771337533593,10.96531969,85.129,85.069,10.5853]
[1771337533594,1.98979005,85.11,85.069,10.5853]
[1771337534595,11.22495967,85.11,85.069,10.5853]
[1771337535989,10.5805,85.109,85.069,10.5853]
[1771337536192,9.23516962,85.107,85.064,7.71596371]
[1771337536496,1.98979005,85.11,85.064,7.71596371]
[1771337536497,9.23516962,85.105,85.064,7.71596371]
[1771337537688,10.5812,85.104,85.064,18.30196371]
[1771337537994,9.23516962,85.118,85.071,7.22641044]
[1771337538190,8.60427004,85.117,85.071,7.22641044]
[1771337538393,8.60427004,85.116,85.071,7.22641044]
[1771337538694,8.60427004,85.116,85.042,21.51262016]
[1771337538695,9.23516962,85.133,85.091,7.19738283]
[1771337538897,8.60646897,85.132,85.091,7.19738283]
[1771337539092,9.23516962,85.133,85.091,7.19738283]
[1771337539486,9.23516962,85.133,85.09,1.98979005]
[1771337539487,1.98979005,85.14,85.094,7.16913809]
[1771337539692,1.98979005,85.14,85.074,107.68]
[1771337539693,9.23516962,85.146,85.101,7.16913809]
[1771337540903,9.23516962,85.146,85.108,10.5805]
[1771337541596,9.23516962,85.146,85.101,17.75053809]
[1771337541794,9.23516962,85.139,85.09,1.98979005]
[1771337541989,9.23516962,85.139,85.088,7.13247756]
[1771337541990,1.98979005,85.13,85.088,7.13247756]
[1771337542195,9.23516962,85.129,85.088,7.13247756]
[1771337543395,9.23516962,85.129,85.09,6.97258259]
[1771337543595,1.98979005,85.14,85.091,6.97258259]
[1771337544699,1.98979005,85.14,85.098,10.5817]
[1771337545002,9.23516962,85.145,85.101,6.98302828]
[1771337548400,9.23516962,85.109,85.06,1.98979005]
[1771337548597,1.98979005,85.11,85.061,6.83966616]
[1771337549102,1.98979005,85.11,85.07,1.98979005]
[1771337549303,1.98979005,85.11,85.071,6.81472672]
[1771337549693,1.98979005,85.11,85.078,10.5843]
[1771337549893,10.579,85.121,85.078,10.5843]
[1771337549894,9.23516962,85.119,85.078,10.5843]
[1771337551708,9.23516962,85.119,85.079,6.56021081]
[1771337552008,1.98979005,85.12,85.083,6.55043951]
[1771337552405,9.23516962,85.132,85.094,10.5823]
[1771337552606,1.98979005,85.14,85.095,6.52576342]
[1771337553306,9.23516962,85.145,85.101,6.50215619]
[1771337553899,1.98979005,85.15,85.109,6.76437696]
[1771337554908,11.22495967,85.16,85.11,19.31067065]
[1771337555117,11.22495967,85.16,85.111,6.7405806]
[1771337555319,1.98979005,85.17,85.121,6.71672226]
[1771337555812,11.22495967,85.17,85.121,6.71672226]
[1771337557311,11.22495967,85.16,85.114,10.5798]
[1771337558914,74.0,85.19,85.108,6.68543669]
[1771337558915,11.22495967,85.15,85.108,6.68543669]
[1771337559216,9.23516962,85.129,85.08,8.66351097]
[1771337559409,9.23516962,85.129,85.081,6.67372092]
[1771337559606,1.98979005,85.14,85.091,6.67372092]
[1771337559811,9.23516962,85.144,85.101,6.67372092]
[1771337560016,1.98979005,85.15,85.101,6.67372092]
[1771337560810,1.98979005,85.15,85.105,10.5808]
[1771337561006,11.22495967,85.15,85.101,6.67372092]
[1771337561213,1.98979005,85.14,85.101,6.67372092]
[1771337561406,1.98979005,85.13,85.085,6.63836471]
[1771337561610,1.98979005,85.13,85.091,6.63836471]
[1771337562012,11.22495967,85.14,85.091,6.63836471]
[1771337562813,19.81196962,85.139,85.091,6.63836471]
[1771337563020,9.23516962,85.129,85.087,10.5831]
[1771337564610,9.23516962,85.129,85.08,12.57379005]
[1771337564813,1.98979005,85.12,85.08,10.584]
[1771337565127,11.04297391,85.12,85.076,6.65082933]
[1771337569014,11.04297391,85.12,85.077,10.5844]
[1771337570314,1.98979005,85.11,85.077,10.5844]
[1771337570519,11.04297391,85.12,85.077,10.5844]
[1771337572025,8.36764596,85.115,85.065,10.5858]
[1771337572328,1.98979005,85.1,85.065,10.5858]
[1771337572525,1.98979005,85.1,85.063,6.00228701]
[1771337573719,1.98979005,85.1,85.063,16.58838701]
[1771337573917,10.35743601,85.09,85.049,5.97042259]
[1771337574118,8.36764596,85.079,85.032,5.97042259]
[1771337574722,8.36764596,85.079,85.045,10.5883]
[1771337577022,8.36764596,85.079,85.04,1.98979005]
[1771337577223,8.36764596,85.079,85.036,5.84172855]
[1771337578219,74.02,85.12,85.027,106.04]
[1771337578220,10.35743601,85.09,85.042,5.81645467]
[1771337579623,1.98979005,85.08,85.042,5.81645467]
[1771337580820,10.35743601,85.08,85.042,5.81645467]
[1771337581124,1.98979005,85.09,85.05,5.78349092]
[1771337581526,8.36764596,85.094,85.059,10.5866]
[1771337582122,8.36764596,85.089,85.036,5.59975655]
[1771337582527,8.36764596,85.079,85.036,5.59975655]
[1771337582718,1.98979005,85.07,85.036,5.59975655]
[1771337582918,10.35743601,85.07,85.028,10.5905]
[1771337583123,10.35743601,85.06,85.01,1.98979005]
[1771337583331,1.98979005,85.05,85.018,10.5917]
[1771337583529,18.95424596,85.06,85.018,10.5917]
[1771337583530,8.36764596,85.059,85.018,10.5917]
[1771337584322,1.98979005,85.05,85.018,10.5917]
[1771337584526,8.36764596,85.059,85.011,16.1764032]
[1771337586928,8.36764596,85.059,85.017,10.5919]
[1771337587132,10.5857,85.067,85.021,5.41180916]
[1771337587328,8.36764596,85.073,85.021,5.41180916]
[1771337587527,8.36764596,85.073,85.03,1.98979005]
[1771337587728,1.98979005,85.09,85.032,5.395829]
[1771337588026,8.36764596,85.089,85.032,5.395829]
[1771337588426,8.36764596,85.089,85.04,1.98979005]
[1771337588628,8.36764596,85.089,85.041,5.45359733]
[1771337588830,8.36764596,85.089,85.042,5.45359733]
[1771337589224,10.5837,85.083,85.042,5.45359733]
[1771337594632,8.36764596,85.089,85.044,5.3534699]
[1771337594932,8.12330517,85.102,85.061,5.35459928]
[1771337595333,8.12330517,85.102,85.07,1.990176]
[1771337595733,1.990176,85.12,85.07,1.990176]
[1771337595734,8.12330517,85.115,85.072,10.585]
[1771337596345,8.12330517,85.115,85.072,15.91111121]
[1771337597239,8.12330517,85.115,85.079,10.5841]
[1771337600143,8.12330517,85.139,85.09,7.30230691]
[1771337600337,8.12330517,85.139,85.091,5.31213091]
[1771337600641,8.12330517,85.139,85.1,1.990176]
[1771337601137,8.12330517,85.139,85.101,5.29918503]
[1771337601539,8.12330517,85.152,85.112,10.58]
[1771337601729,8.12330517,85.152,85.11,1.990176]
[1771337601730,8.12330517,85.152,85.113,5.29918503]
[1771337602130,8.12330517,85.152,85.11,1.990176]
[1771337602544,8.12330517,85.149,85.1,7.16270624]
[1771337602745,10.11348117,85.14,85.1,5.17253024]
[1771337603438,8.12330517,85.14,85.1,7.16270624]
[1771337603640,8.12330517,85.14,85.101,5.14652857]
[1771337604143,1.990176,85.15,85.108,10.5805]
[1771337604342,1.990176,85.15,85.108,15.94398779]
[1771337605544,10.11348117,85.15,85.108,15.94398779]
[1771337606135,10.11348117,85.15,85.108,5.36348779]
[1771337606335,8.12330517,85.15,85.115,10.5796]
[1771337607249,8.12330517,85.15,85.11,1.990176]
[1771337608242,8.12330517,85.15,85.108,15.94408779]
[1771337608439,8.12330517,85.15,85.11,1.990176]
[1771337608848,10.11348117,85.15,85.108,15.94408779]
[1771337609439,10.11348117,85.15,85.115,10.5796]
[1771337609440,8.12330517,85.15,85.115,10.5796]
[1771337609644,8.12330517,85.15,85.11,1.990176]
[1771337609846,10.11348117,85.15,85.108,5.36348779]
[1771337610651,10.11348117,85.15,85.108,15.94408779]
[1771337612356,10.11348117,85.15,85.108,5.36348779]
[1771337612852,1.990176,85.14,85.101,10.5814]
[1771337613356,1.990176,85.14,85.107,10.5806]
[1771337613555,10.11348117,85.15,85.107,10.5806]
[1771337614052,10.11348117,85.15,85.1,1.990176]
[1771337614053,10.11348117,85.15,85.114,10.5798]
[1771337616354,10.11348117,85.15,85.107,10.5806]
[1771337620460,10.5766,85.141,85.101,5.22025455]
[1771337620670,10.5766,85.141,85.061,11.75]
[1771337620671,8.12330517,85.119,85.071,5.17333074]
[1771337621766,8.12330517,85.119,85.074,5.16297754]
[1771337623256,8.12330517,85.119,85.075,10.5846]
[1771337624262,8.12330517,85.119,85.078,10.5843]
[1771337625266,8.12330517,85.119,85.081,10.5839]
[1771337627069,8.12330517,85.119,85.081,15.63011541]
[1771337627271,8.12330517,85.119,85.081,5.04621541]
[1771337634474,1.990176,85.11,85.081,5.04621541]
[1771337634675,8.12330517,85.119,85.081,5.04621541]
[1771337638178,8.12330517,85.119,85.082,10.5838]
[1771337640081,8.12330517,85.119,85.088,10.583]
[1771337640379,1.990176,85.13,85.088,4.8948468]
[1771337641783,10.52212766,85.13,85.094,10.5822]
[1771337643076,1.990176,85.14,85.095,4.85341324]
[1771337643283,10.52212766,85.14,85.095,4.85341324]
[1771337644783,10.52212766,85.14,85.104,10.581]
[1771337646178,10.52212766,85.14,85.097,10.5818]
[1771337646583,10.52212766,85.14,85.095,4.85341324]
[1771337647284,10.52212766,85.14,85.103,10.5812]
[1771337647881,10.97359068,85.165,85.065,33.66871623]
[1771337647882,10.52212766,85.15,85.11,4.71523594]
[1771337648272,1.990176,85.13,85.08,1.990176]
[1771337648476,8.53195166,85.129,85.081,4.70731843]
[1771337649682,8.53195166,85.129,85.091,10.5827]
[1771337650483,10.52212766,85.12,85.083,10.5837]
[1771337650689,10.52212766,85.12,85.07,1.990176]
[1771337650985,10.52212766,85.12,85.071,4.46804145]
[1771337651175,1.990176,85.11,85.071,4.46804145]
[1771337651375,10.52212766,85.11,85.071,4.46804145]
[1771337651576,10.52212766,85.11,85.06,1.990176]
[1771337651777,10.52212766,85.11,85.06,6.45083127]
[1771337651976,10.52106715,85.11,85.06,6.44977076]
[1771337652381,10.52106715,85.11,85.061,4.48904934]
[1771337652689,10.52106715,85.1,85.066,10.5858]
[1771337653086,10.52106715,85.1,85.061,4.48904934]
[1771337653585,8.53195166,85.089,85.049,4.48230291]
[1771337654179,8.53195166,85.089,85.051,10.5876]
[1771337654793,74.02,85.126,85.055,4.40227527]
[1771337654794,1.98911549,85.1,85.055,4.40227527]
[1771337655090,1.98911549,85.1,85.061,4.40316357]
[1771337655791,1.98911549,85.1,85.062,10.5862]
[1771337656089,10.18861401,85.1,85.062,10.5862]
[1771337656687,10.18861401,85.1,85.055,10.5871]
[1771337657087,1.98911549,85.09,85.055,10.5871]
[1771337659790,8.19949852,85.1,85.061,10.5864]
[1771337659992,10.18861401,85.1,85.061,10.5864]
[1771337661895,10.18861401,85.1,85.065,15.03931912]
[1771337662099,1.98911549,85.11,85.066,4.45341912]
[1771337663094,10.18861401,85.11,85.066,4.45341912]
[1771337663794,10.18861401,85.11,85.071,10.5851]
[1771337664097,1.98911549,85.12,85.072,4.43272003]
[1771337664296,1.98911549,85.13,85.091,10.5826]
[1771337664494,8.19949852,85.128,85.089,4.42640063]
[1771337664797,1.98911549,85.12,85.089,4.42640063]
[1771337665786,1.98911549,85.12,85.09,10.5828]
[1771337666194,1.98911549,85.12,85.096,10.582]
[1771337666591,1.98911549,85.13,85.096,10.582]
[1771337667491,1.98911549,85.14,85.103,4.33269918]
[1771337667696,8.19949852,85.149,85.103,4.33269918]
[1771337668294,1.98911549,85.14,85.103,4.33269918]
[1771337668696,1.98911549,85.14,85.105,10.5809]
[1771337670004,8.19949852,85.149,85.105,10.5809]
[1771337670206,1.98911549,85.14,85.105,10.5809]
[1771337671107,10.18861401,85.14,85.105,10.5809]
[1771337671795,10.18861401,85.14,85.103,4.33269918]
[1771337671994,10.18861401,85.13,85.097,10.5819]
[1771337675506,8.19949852,85.13,85.097,10.5819]
[1771337677509,8.19949852,85.13,85.052,11.75]
[1771337677510,10.18861401,85.13,85.089,10.5829]
[1771337678213,10.18861401,85.13,85.081,4.36215381]
[1771337679703,10.18861401,85.13,85.095,10.5821]
[1771337683117,8.19949852,85.13,85.095,10.5821]
[1771337686317,8.19949852,85.13,85.091,4.33472012]
[1771337686715,10.18861401,85.13,85.089,10.5829]
[1771337686916,1.98911549,85.12,85.081,10.5839]
[1771337687220,8.13131852,85.109,85.06,1.98911549]
[1771337688025,8.13131852,85.099,85.058,4.26658821]
[1771337688931,8.13131852,85.099,85.05,1.98911549]
[1771337688932,8.13131852,85.099,85.057,10.5868]
[1771337690434,1.98911549,85.09,85.057,10.5868]
[1771337690730,1.98911549,85.09,85.046,4.12126988]
[1771337690731,8.13131852,85.089,85.047,10.5881]
[1771337695131,1.98911549,85.09,85.046,4.12126988]
[1771337695132,8.09005882,85.087,85.046,4.12126988]
[1771337698132,74.02,85.126,85.019,101.56]
[1771337698133,8.09005882,85.083,85.019,101.56]
[1771337698326,8.55854008,85.116,84.948,179.0]
[1771337698327,8.09005882,85.069,85.023,4.04063734]
[1771337699525,8.09005882,85.069,85.007,101.4]
[1771337699526,8.09005882,85.069,85.03,16.61618776]
[1771337699730,1.98911549,85.08,85.031,4.03687227]
[1771337700031,10.07917431,85.08,85.04,4.2033519]
[1771337703232,1.98911549,85.06,85.031,10.59]
[1771337703634,10.07917431,85.06,85.011,4.17131039]
[1771337703934,1.98911549,85.05,85.011,4.17131039]